bitfinex-derivatives/quotes_SOLF0:USTF0_20251229
["timestamp","ask_amount","ask_price","bid_price","bid_amount"]
[1766967696377,22.43973403,125.61,125.54,20.02]
[1766967697178,0.05658823,125.59,125.56,0.0543047]
[1766967697780,0.05658823,125.59,125.56,20.0743047]
[1766967698782,20.38,125.63,125.56,20.0743047]
[1766967698987,20.38,125.63,125.56,20.02]
[1766967699886,20.38,125.63,125.58,0.05102943]
[1766967700284,20.38,125.63,125.58,20.07102943]
[1766967700477,20.38,125.63,125.58,0.05102943]
[1766967700680,20.38,125.61,125.54,20.02]
[1766967701686,0.05102943,125.59,125.56,0.05373729]
[1766967702687,0.00102943,125.59,125.56,20.07373729]
[1766967707192,20.38,125.63,125.56,20.07373729]
[1766967709697,25.91853403,125.65,125.56,22.07373729]
[1766967709899,25.91853403,125.65,125.59,0.05320715]
[1766967711294,16.69,125.64,125.59,0.05320715]
[1766967714195,19.62973403,125.63,125.59,0.05320715]
[1766967714494,19.62973403,125.61,125.56,16.1]
[1766967714799,19.62973403,125.59,125.51,16.1]
[1766967715598,0.05320715,125.56,125.54,0.05131197]
[1766967718995,24.742,125.59,125.54,0.05131197]
[1766967719697,24.742,125.59,125.54,16.15131197]
[1766967719698,17.57,125.59,125.54,16.15131197]
[1766967720199,17.57,125.61,125.54,18.211046]
[1766967720399,2.05973403,125.64,125.57,16.1]
[1766967720400,17.57,125.64,125.57,16.1]
[1766967720698,17.57,125.69,125.6,18.15973403]
[1766967720901,7.1673,125.68,125.63,0.05034327]
[1766967721202,24.7373,125.68,125.63,0.05034327]
[1766967721506,17.57,125.68,125.63,0.05034327]
[1766967722097,19.62973403,125.67,125.63,0.00034327]
[1766967722299,19.62973403,125.67,125.58,16.1]
[1766967722704,19.62973403,125.65,125.58,16.1]
[1766967722906,2.05973403,125.68,125.55,16.1]
[1766967722907,17.57,125.63,125.55,16.1]
[1766967723199,0.00034327,125.6,125.58,0.0574259]
[1766967723400,2.05973403,125.64,125.57,16.1]
[1766967723798,17.57,125.65,125.57,16.1]
[1766967724198,17.57,125.65,125.6,0.05413903]
[1766967724598,19.62973403,125.68,125.6,16.15413903]
[1766967724798,19.62973403,125.68,125.63,0.05158609]
[1766967726610,17.57,125.68,125.63,0.05158609]
[1766967730010,24.7369,125.68,125.63,0.05158609]
[1766967730306,17.57,125.67,125.63,0.05158609]
[1766967730502,24.7375,125.67,125.63,0.05158609]
[1766967731910,17.57,125.66,125.63,0.00158609]
[1766967732809,17.62034327,125.66,125.63,0.00158609]
[1766967736908,0.05034327,125.66,125.63,0.00158609]
[1766967745124,14.97034327,125.66,125.63,0.00158609]
[1766967745320,14.97034327,125.66,125.57,14.62]
[1766967745321,14.92,125.64,125.57,14.62]
[1766967745917,14.92,125.63,125.57,14.62]
[1766967746118,18.44343202,125.63,125.55,14.62]
[1766967746325,18.49536138,125.61,125.53,14.62]
[1766967746515,1.3169397,125.59,125.53,14.62]
[1766967747322,0.05844476,125.57,125.55,0.05722092]
[1766967748624,1.37538446,125.57,125.51,17.25450884]
[1766967749617,1.37538446,125.57,125.53,0.05356814]
[1766967749819,14.92,125.61,125.54,15.9369397]
[1766967750119,14.92,125.61,125.55,1.3169397]
[1766967750425,14.92,125.61,125.54,15.9369397]
[1766967750621,1.3169397,125.59,125.54,14.62]
[1766967750823,0.0572846,125.58,125.55,0.05530754]
[1766967754737,1.3169397,125.57,125.52,14.62]
[1766967755832,1.3169397,125.57,125.53,0.05535905]
[1766967756538,1.3169397,125.55,125.51,2.63450884]
[1766967757339,16.2369397,125.56,125.5,14.62]
[1766967757639,0.05204568,125.54,125.52,0.05945438]
[1766967759136,1.36898538,125.54,125.48,14.62]
[1766967759438,1.3169397,125.51,125.46,14.62]
[1766967760243,0.06054465,125.5,125.47,0.05906949]
[1766967763141,14.92,125.53,125.47,1.37600919]
[1766967763338,14.92,125.66,125.53,14.62]
[1766967763543,14.92,125.66,125.6,1.3169397]
[1766967763843,14.92,125.66,125.59,1.3169397]
[1766967763844,16.2369397,125.66,125.59,1.3169397]
[1766967764247,0.05652759,125.64,125.61,0.0598413]
[1766967764848,14.92,125.69,125.61,3.58302923]
[1766967765143,3.52318793,125.72,125.61,3.58302923]
[1766967765144,13.42,125.72,125.63,3.52318793]
[1766967765341,26.78376463,125.71,125.63,16.05318793]
[1766967765551,13.42,125.78,125.7,16.05318793]
[1766967765843,0.0502892,125.75,125.72,3.52318793]
[1766967766043,13.42,125.83,125.72,3.52318793]
[1766967766044,13.42,125.83,125.74,16.05318793]
[1766967766246,13.42,125.85,125.76,12.53]
[1766967766450,13.42,125.85,125.73,16.05318793]
[1766967766646,13.42,125.85,125.77,3.52318793]
[1766967766948,0.06061321,125.82,125.8,0.06004031]
[1766967767156,0.06061321,125.82,125.8,4.031e-05]
[1766967768248,13.42,125.87,125.8,4.031e-05]
[1766967768450,13.42,125.87,125.77,16.05318793]
[1766967768649,16.94318793,125.87,125.77,12.53]
[1766967768855,16.94318793,125.85,125.77,12.53]
[1766967769148,0.06021223,125.82,125.8,0.05089925]
[1766967769354,13.42,125.88,125.8,0.05089925]
[1766967769553,13.42,125.88,125.79,3.52318793]
[1766967769754,13.42,125.88,125.78,12.53]
[1766967770364,0.04938624,125.84,125.82,0.0595526]
[1766967772158,12.46,125.91,125.83,12.79]
[1766967772360,12.46,125.94,125.86,3.52318793]
[1766967772552,12.46,125.94,125.86,16.31318793]
[1766967773064,15.98318793,125.97,125.89,0.060052]
[1766967773260,15.98318793,125.97,125.87,12.79]
[1766967773566,3.52318793,125.96,125.87,12.79]
[1766967773764,15.98318793,125.96,125.87,12.79]
[1766967773966,3.52318793,125.95,125.87,12.79]
[1766967774666,0.05264905,125.92,125.9,0.05254477]
[1766967776066,0.00264905,125.92,125.9,0.05254477]
[1766967778064,12.46,125.99,125.9,14.42254477]
[1766967778358,12.46,125.99,125.9,12.79]
[1766967778561,15.98318793,125.99,125.9,12.79]
[1766967778763,12.46,125.98,125.9,12.79]
[1766967779260,12.46,125.98,125.93,0.05923912]
[1766967780164,3.52318793,125.99,125.93,0.05923912]
[1766967780370,114.67298793,126.06,125.93,0.05923912]
[1766967780371,12.46,126.04,125.94,12.79]
[1766967780667,12.46,126.02,125.98,0.0577777]
[1766967780966,12.46,126.06,125.98,12.8477777]
[1766967781154,3.52318793,126.08,126.01,0.05554247]
[1766967781356,12.46,126.24,126.08,12.79]
[1766967781560,1.58,126.23,126.13,12.79]
[1766967781759,1.58,126.23,126.06,3.52318793]
[1766967781760,1.58,126.23,126.15,6.36562476]
[1766967782067,1.58,126.23,126.16,3.52318793]
[1766967782259,1.58,126.23,126.15,6.36562476]
[1766967782563,3.52318793,126.19,126.09,12.79]
[1766967782768,12.46,126.19,126.09,12.79]
[1766967782970,12.46,126.19,126.08,3.52318793]
[1766967782971,3.52318793,126.19,126.1,12.79]
[1766967783261,1.58,126.18,126.1,12.79]
[1766967783468,1.58,126.22,126.12,12.79]
[1766967783653,0.05388843,126.18,126.16,0.05257917]
[1766967783857,3.52318793,126.23,126.16,0.05598361]
[1766967784258,5.10318793,126.22,126.16,0.05598361]
[1766967784458,5.10318793,126.22,126.14,12.79]
[1766967784459,3.52318793,126.2,126.14,12.79]
[1766967784964,3.52318793,126.16,126.08,12.79]
[1766967785172,3.52318793,126.12,126.05,12.79]
[1766967786263,0.0036451,126.1,126.07,0.05991352]
[1766967786473,3.52318793,126.13,126.05,12.79]
[1766967786664,1.58,126.11,126.05,12.79]
[1766967787362,1.58,126.11,126.07,0.05517333]
[1766967788267,1.58,126.11,126.01,3.52318793]
[1766967788268,5.10318793,126.11,126.0,12.79]
[1766967788569,1.58,126.11,126.02,12.79]
[1766967789372,3.52318793,126.15,126.05,12.84508306]
[1766967789562,3.52318793,126.15,126.05,12.79]
[1766967790266,3.52318793,126.15,126.09,0.057074]
[1766967792468,18.14265014,126.16,126.09,0.057074]
[1766967793775,7.1384,126.18,126.02,12.79]
[1766967793776,18.14265014,126.13,126.02,12.79]
[1766967794162,5.68265014,126.09,125.99,12.79]
[1766967794368,5.68265014,126.07,125.99,12.79]
[1766967794767,0.05957635,126.04,125.99,12.79]
[1766967794968,0.05957635,126.04,125.96,12.79]
[1766967795172,5.68265014,126.05,125.96,12.79]
[1766967795680,5.68265014,126.05,125.9,99.46265014]
[1766967795681,5.68265014,126.01,125.93,12.08]
[1766967795972,0.05724249,125.98,125.96,0.05844382]
[1766967796170,11.57,126.03,125.96,0.05844382]
[1766967796672,11.57,126.11,125.96,12.13844382]
[1766967796877,17.25265014,126.08,125.96,12.08]
[1766967797078,0.06018069,126.03,126.01,0.06038308]
[1766967797281,0.06098791,126.03,126.01,0.06038308]
[1766967800869,0.06098791,126.03,125.93,12.08]
[1766967800870,13.21098791,126.03,125.93,12.08]
[1766967801176,11.57,126.03,125.93,12.08]
[1766967801583,11.57,126.01,125.9,12.08]
[1766967801882,0.05584452,125.97,125.94,0.05684479]
[1766967802081,11.62584452,125.97,125.86,12.08]
[1766967802378,11.57,126.0,125.91,12.08]
[1766967802578,11.57,126.04,125.93,12.08]
[1766967802973,0.05309451,126.0,125.97,0.05419066]
[1766967803479,93.72,126.08,125.97,0.05419066]
[1766967803480,11.57,126.07,125.97,0.05419066]
[1766967803683,11.57,126.07,125.97,12.08]
[1766967804081,11.57,126.07,125.98,17.76265014]
[1766967804281,11.57,126.07,125.98,12.08]
[1766967804485,0.05416723,126.04,126.01,0.05074036]
[1766967806275,11.57,126.14,126.02,12.08]
[1766967806475,130.94925014,126.24,126.06,12.08]
[1766967806476,11.57,126.18,126.06,12.08]
[1766967806683,12.95032247,126.18,126.06,12.08]
[1766967806878,12.95032247,126.18,126.07,19.2242]
[1766967807291,0.05057255,126.14,126.11,0.05587476]
[1766967807492,11.57,126.21,126.11,12.13587476]
[1766967807681,11.57,126.21,126.11,17.76265014]
[1766967807882,11.57,126.21,126.11,12.08]
[1766967808487,0.02264041,126.17,126.11,12.08]
[1766967808983,0.02264041,126.17,126.08,12.08]
[1766967809184,11.57,126.18,126.08,19.2239]
[1766967809479,11.57,126.21,126.12,0.05191646]
[1766967809685,11.57,126.21,126.12,12.08]
[1766967810085,52.6,126.27,126.12,12.08]
[1766967810086,11.57,126.3,126.17,17.76265014]
[1766967810281,11.57,126.3,126.18,12.08]
[1766967810485,0.02547012,126.25,126.23,0.05408609]
[1766967810687,0.02547012,126.25,126.23,0.05624821]
[1766967810893,1.37870924,126.32,126.23,0.05624821]
[1766967811089,1.37870924,126.32,126.21,24.89925014]
[1766967811389,1.37870924,126.32,126.22,12.08]
[1766967811792,11.57,126.31,126.22,12.08]
[1766967812090,25.84709778,126.35,126.26,0.00204689]
[1766967812293,20.16444764,126.35,126.24,12.08]
[1766967812488,12.94843619,126.34,126.24,12.08]
[1766967812789,11.57,126.34,126.25,12.08]
[1766967812991,0.05,126.31,126.28,0.05465803]
[1766967813191,0.05,126.31,126.22,17.76265014]
[1766967813385,11.57,126.34,126.23,12.08]
[1766967813586,11.57,126.33,126.18,12.08]
[1766967813787,11.57,126.31,126.2,12.08]
[1766967814296,0.05165344,126.27,126.24,0.00449671]
[1766967815391,11.62165344,126.27,126.17,12.08]
[1766967815699,11.57,126.27,126.17,12.08]
[1766967815894,5.68265014,126.26,126.17,12.08]
[1766967816097,11.57,126.26,126.17,12.08]
[1766967816291,17.25265014,126.3,126.2,0.05043553]
[1766967816492,11.57,126.29,126.18,12.08]
[1766967817297,0.05352138,126.25,126.22,0.05271792]
[1766967817499,11.57,126.33,126.23,5.68265014]
[1766967817695,8.59444764,126.35,126.23,5.68265014]
[1766967817696,8.59444764,126.35,126.24,12.08]
[1766967818401,8.59444764,126.35,126.26,12.08]
[1766967818602,8.59444764,126.35,126.28,0.05459369]
[1766967819490,20.16444764,126.35,126.28,0.05459369]
[1766967820115,20.16444764,126.35,126.23,12.08]
[1766967820116,11.57,126.32,126.2,12.08]
[1766967820713,11.57,126.29,126.17,12.08]
[1766967820909,11.57,126.29,126.13,28.85391736]
[1766967821216,0.05459369,126.22,126.2,0.00437634]
[1766967821413,11.57,126.26,126.14,12.08]
[1766967821918,11.57,126.3,126.17,12.08]
[1766967822213,0.0574137,126.25,126.22,0.06062678]
[1766967822409,11.57,126.3,126.17,12.08]
[1766967822813,11.57,126.3,126.18,7.1383]
[1766967823312,11.57,126.3,126.18,19.2183]
[1766967823513,0.04717999,126.25,126.23,0.05375643]
[1766967825420,11.57,126.3,126.23,0.05375643]
[1766967827522,10.39,126.33,126.23,0.05375643]
[1766967827721,10.39,126.33,126.21,7.1366]
[1766967828514,10.39,126.33,126.2,10.62]
[1766967828515,10.39,126.32,126.2,10.62]
[1766967828718,10.39,126.32,126.17,10.62]
[1766967828911,10.44791439,126.27,126.17,10.62]
[1766967829116,10.39,126.26,126.11,10.62]
[1766967829619,10.39,126.26,126.1,2.81506095]
[1766967829620,10.39,126.24,126.12,17.7617]
[1766967829817,0.00066805,126.19,126.17,0.05040578]
[1766967830019,10.39,126.24,126.17,0.05040578]
[1766967830924,16.77391736,126.3,126.17,0.05040578]
[1766967830925,0.05552521,126.22,126.17,0.05040578]
[1766967831124,10.39,126.28,126.18,0.05186112]
[1766967831317,10.39,126.28,126.15,10.62]
[1766967831817,10.39,126.28,126.18,10.62]
[1766967832323,10.46,126.33,126.22,0.0564082]
[1766967832525,10.46,126.33,126.26,0.00132649]
[1766967833415,0.05665522,126.31,126.26,0.00132649]
[1766967833616,10.46,126.3,126.26,0.00132649]
[1766967834020,10.46,126.3,126.18,17.7582]
[1766967834320,10.46,126.29,126.18,10.62]
[1766967834625,10.46,126.32,126.18,10.62]
[1766967834920,10.46,126.3,126.18,10.62]
[1766967835121,0.05376246,126.25,126.23,0.05277145]
[1766967835322,0.05731179,126.25,126.23,0.05277145]
[1766967835522,93.58,126.34,126.23,0.05277145]
[1766967835523,10.46,126.34,126.23,10.78277145]
[1766967835819,10.46,126.34,126.23,10.73]
[1766967836118,10.46,126.34,126.17,16.77391736]
[1766967836119,10.46,126.33,126.22,7.1357]
[1766967836524,10.46,126.33,126.26,0.05186507]
[1766967836926,10.46,126.31,126.26,0.00186507]
[1766967837817,0.05019136,126.3,126.26,0.00186507]
[1766967838929,19.05444764,126.35,126.26,7.13536507]
[1766967839123,19.05444764,126.35,126.26,7.1335]
[1766967839826,19.05444764,126.35,126.24,23.52834147]
[1766967840025,10.46,126.34,126.28,0.05306774]
[1766967840824,8.59444764,126.35,126.28,7.18546774]
[1766967841427,8.59444764,126.35,126.3,7.1312]
[1766967841622,0.00444764,126.35,126.31,0.05339717]
[1766967842019,10.46,126.41,126.32,8.88354147]
[1766967842220,1.37756314,126.44,126.31,1.63339717]
[1766967842221,10.46,126.49,126.38,3.2]
[1766967842419,10.46,126.52,126.42,0.04994987]
[1766967842621,1.37701804,126.5,126.41,8.86354147]
[1766967842823,10.46,126.56,126.45,8.86354147]
[1766967843024,10.46,126.64,126.51,5.66354147]
[1766967843328,10.46,126.64,126.49,5.66354147]
[1766967843329,1.37538535,126.66,126.57,5.66354147]
[1766967843519,10.46,126.72,126.61,12.77744147]
[1766967843715,10.46,126.67,126.65,0.00267942]
[1766967843915,16.12354147,126.67,126.53,5.66354147]
[1766967844120,16.12354147,126.67,126.54,10.04503957]
[1766967844319,10.46,126.65,126.55,6.83503957]
[1766967844522,5.66354147,126.72,126.56,6.82234451]
[1766967844523,5.66354147,126.68,126.56,6.82234451]
[1766967844719,10.46,126.7,126.56,6.82234451]
[1766967844720,17.49786764,126.74,126.61,5.66354147]
[1766967844918,0.05549439,126.69,126.59,3.21]
[1766967845119,5.66354147,126.68,126.6,6.81653541]
[1766967845328,10.46,126.68,126.55,8.85354147]
[1766967845628,10.46,126.68,126.57,5.66354147]
[1766967845825,10.46,126.68,126.58,9.99394582]
[1766967846025,0.0502396,126.64,126.62,0.05223493]
[1766967846226,10.46,126.72,126.62,0.05223493]
[1766967846520,10.46,126.76,126.64,8.83354147]
[1766967846722,10.46,126.76,126.58,134.6074]
[1766967846723,5.66354147,126.71,126.59,3.17]
[1766967847022,110.5096,126.79,126.59,3.17]
[1766967847023,10.46,126.81,126.68,3.15]
[1766967847221,10.46,126.81,126.67,5.66354147]
[1766967847222,10.46,126.81,126.7,8.81354147]
[1766967847421,0.0526022,126.76,126.73,0.05290684]
[1766967847626,0.0526022,126.76,126.73,0.05666092]
[1766967847824,0.0526022,126.76,126.61,7.114]
[1766967848030,10.46,126.76,126.64,3.1]
[1766967848223,10.46,126.75,126.6,5.66354147]
[1766967848424,10.46,126.73,126.61,3.08]
[1766967848633,10.46,126.73,126.62,5.66354147]
[1766967848926,0.05799722,126.69,126.66,0.05861594]
[1766967849231,10.46,126.77,126.66,3.11861594]
[1766967849424,10.46,126.81,126.7,5.66354147]
[1766967849631,10.46,126.81,126.7,3.06]
[1766967849932,10.46,126.81,126.7,8.72354147]
[1766967850130,0.05486827,126.77,126.65,8.70354147]
[1766967850327,10.46,126.77,126.65,8.70354147]
[1766967850528,10.46,126.77,126.65,3.04]
[1766967850924,10.46,126.82,126.68,19.75668091]
[1766967851232,0.05247331,126.76,126.68,3.09]
[1766967851428,10.46,126.79,126.68,3.09]
[1766967851630,10.46,126.76,126.64,3.13]
[1766967852126,10.46,126.86,126.69,3.11]
[1766967852328,10.46,126.86,126.76,0.05224565]
[1766967852532,10.46,126.84,126.73,3.11]
[1766967853034,10.46,126.89,126.73,3.11]
[1766967853234,10.46,126.87,126.73,3.11]
[1766967853534,10.46,126.91,126.8,0.06026113]
[1766967853719,10.46,126.91,126.77,2.98]
[1766967854226,10.46,126.91,126.79,2.96]
[1766967854435,0.05038015,126.86,126.79,2.96]
[1766967854828,0.05038015,126.86,126.75,2.96]
[1766967855132,10.46,126.88,126.75,2.96]
[1766967855538,0.05399839,126.83,126.8,0.00469508]
[1766967855832,9.67,126.85,126.72,16.80947702]
[1766967856036,9.67,126.85,126.73,2.87]
[1766967856234,9.67,126.89,126.76,2.87]
[1766967856429,9.67,126.88,126.76,2.87]
[1766967856630,0.05591857,126.84,126.81,0.05562387]
[1766967856933,9.72591857,126.84,126.73,7.107]
[1766967857129,9.67,126.84,126.72,12.63167702]
[1766967857730,9.67,126.84,126.47,7.27819967]
[1766967857731,9.72883665,126.79,126.64,2.97]
[1766967858028,9.67,126.79,126.64,2.97]
[1766967858230,9.70167702,126.8,126.64,2.97]
[1766967858231,9.67,126.77,126.64,2.97]
[1766967858439,9.67,126.76,126.62,2.95]
[1766967858825,9.67,126.73,126.58,12.65167702]
[1766967859026,0.05398016,126.67,126.64,0.05702648]
[1766967859326,9.67,126.7,126.58,12.65167702]
[1766967859824,9.67,126.7,126.52,93.28]
[1766967859825,9.67,126.73,126.59,2.99]
[1766967860233,0.05750688,126.67,126.65,0.05220836]
[1766967860442,9.67,126.68,126.56,9.70167702]
[1766967860733,9.67,126.68,126.55,3.03]
[1766967861145,9.67,126.67,126.55,3.03]
[1766967861330,9.67,126.67,126.6,0.0552745]
[1766967862031,9.67,126.71,126.6,0.0552745]
[1766967862230,9.67,126.71,126.59,9.70167702]
[1766967862432,9.67,126.71,126.57,7.1161]
[1766967862433,0.05275364,126.66,126.57,7.1161]
[1766967862633,9.67,126.71,126.59,9.70167702]
[1766967863427,0.06026993,126.66,126.57,3.06]
[1766967863739,9.67,126.67,126.53,3.09]
[1766967863930,9.67,126.67,126.58,9.70167702]
[1766967864441,0.0542648,126.64,126.61,0.0519605]
[1766967865837,9.7242648,126.64,126.61,0.0519605]
[1766967867338,9.7242648,126.64,126.53,10.2085]
[1766967867539,9.67,126.64,126.53,10.2085]
[1766967868238,0.05428343,126.6,126.57,0.05537043]
[1766967868437,9.67,126.68,126.57,19.89324745]
[1766967868630,9.67,126.68,126.57,19.83787702]
[1766967868833,9.67,126.68,126.54,16.81917702]
[1766967869132,9.67,126.67,126.54,16.81917702]
[1766967869332,9.67,126.67,126.59,0.00342044]
[1766967869333,0.05503821,126.62,126.59,0.00342044]
[1766967869639,0.05503821,126.62,126.53,3.02]
[1766967869640,9.72503821,126.62,126.52,7.1191]
[1766967869834,9.67,126.62,126.52,7.1191]
[1766967870027,9.67,126.62,126.49,10.1806]
[1766967870231,9.67,126.62,126.42,110.8265]
[1766967870232,9.67,126.58,126.44,9.70167702]
[1766967870427,13.14564296,126.55,126.5,0.04985105]
[1766967870633,13.14564296,126.55,126.44,7.1236]
[1766967870930,9.67,126.54,126.44,7.1236]
[1766967871135,9.67,126.54,126.4,2.78233424]
[1766967871136,13.14564296,126.51,126.4,2.78233424]
[1766967871337,13.14564296,126.51,126.38,3.47564296]
[1766967871338,9.67,126.48,126.37,17.3472]
[1766967871535,9.67,126.48,126.41,0.05261715]
[1766967871536,0.05598436,126.44,126.41,0.05261715]
[1766967872935,0.05598436,126.44,126.33,10.22]
[1766967872936,4.09494094,126.42,126.29,10.22]
[1766967873234,4.09494094,126.42,126.31,7.1309]
[1766967873430,4.09494094,126.42,126.29,10.22]
[1766967873637,4.09494094,126.42,126.29,17.3521]
[1766967874033,0.05217521,126.37,126.34,0.00237246]
[1766967874232,0.05217521,126.37,126.29,17.3521]
[1766967874432,4.09494094,126.42,126.29,17.3521]
[1766967874632,93.3,126.44,126.26,7.1332]
[1766967874633,9.67,126.39,126.26,7.1332]
[1766967875231,9.67,126.39,126.25,10.22]
[1766967875232,0.06033163,126.34,126.31,0.05096671]
[1766967875439,9.67,126.39,126.31,0.05496495]
[1766967875738,9.67,126.39,126.28,10.22]
[1766967876150,9.67,126.39,126.27,7.1327]
[1766967876335,9.67,126.39,126.32,0.05335965]
[1766967876543,9.67,126.36,126.32,0.05335965]
[1766967876741,9.67,126.36,126.21,19.98915946]
[1766967876944,9.67,126.36,126.24,9.76915946]
[1766967877242,9.67,126.36,126.24,10.22]
[1766967877441,9.67,126.36,126.24,19.98915946]
[1766967877634,0.05287527,126.31,126.29,0.05945718]
[1766967877835,9.67,126.36,126.25,7.1344]
[1766967878031,9.67,126.36,126.19,111.0301]
[1766967878032,9.67,126.39,126.27,19.98915946]
[1766967878239,9.67,126.38,126.27,10.22]
[1766967878442,9.67,126.38,126.23,10.22]
[1766967878443,9.76915946,126.36,126.23,10.22]
[1766967878650,9.67,126.35,126.23,10.22]
[1766967878844,9.67,126.35,126.28,0.0557702]
[1766967878845,0.05895228,126.31,126.28,0.0557702]
[1766967879243,9.67,126.35,126.28,0.0557702]
[1766967879447,9.67,126.38,126.28,0.0557702]
[1766967879746,9.67,126.38,126.26,10.22]
[1766967880133,9.67,126.38,126.26,17.3537]
[1766967880338,0.05124203,126.33,126.31,0.05529444]
[1766967880633,93.4,126.41,126.31,0.05529444]
[1766967880634,9.67,126.41,126.31,0.05529444]
[1766967880833,9.67,126.41,126.3,7.1313]
[1766967881041,9.67,126.41,126.28,9.76915946]
[1766967881447,9.67,126.41,126.29,7.1321]
[1766967881650,0.05894828,126.36,126.33,0.05392922]
[1766967881845,0.05894828,126.36,126.33,0.05926319]
[1766967882451,292.0,126.48,126.33,0.05926319]
[1766967882652,9.67,126.5,126.37,19.98915946]
[1766967882843,9.67,126.57,126.43,9.76915946]
[1766967883152,9.67,126.61,126.47,10.22]
[1766967883546,0.05872542,126.55,126.53,0.05929085]
[1766967883845,0.05717603,126.55,126.4,10.22]
[1766967884046,0.05717603,126.55,126.36,110.8754]
[1766967884047,9.67,126.55,126.42,19.98915946]
[1766967884645,9.67,126.52,126.39,9.76915946]
[1766967884846,0.05539691,126.47,126.44,0.05880937]
[1766967885042,0.05539691,126.47,126.41,7.1253]
[1766967885241,0.05539691,126.47,126.39,19.98915946]
[1766967885242,9.67,126.52,126.44,0.05720198]
[1766967885442,9.86,126.49,126.36,9.76915946]
[1766967885650,9.86,126.49,126.38,7.1266]
[1766967886357,0.0526127,126.45,126.42,0.05173285]
[1766967888761,0.0526127,126.45,126.36,19.42915946]
[1766967888956,9.86,126.49,126.36,19.42915946]
[1766967889251,9.86,126.49,126.36,26.55675946]
[1766967889648,0.05598168,126.44,126.41,0.05949228]
[1766967889846,0.05598168,126.44,126.41,0.05803639]
[1766967890451,9.86,126.49,126.41,0.05803639]
[1766967890656,9.86,126.49,126.39,19.42915946]
[1766967891056,9.86,126.49,126.39,9.66]
[1766967891444,0.05687432,126.45,126.43,0.05221406]
[1766967892760,0.05687432,126.45,126.35,10.27]
[1766967892962,9.86,126.49,126.38,10.27]
[1766967893752,9.86,126.49,126.42,0.05049742]
[1766967893960,9.86,126.49,126.32,110.9158]
[1766967893961,9.96460043,126.45,126.34,10.27]
[1766967894261,9.91,126.44,126.3,20.03915946]
[1766967894454,3.4817605,126.43,126.32,7.1303]
[1766967894856,9.91,126.4,126.36,0.05228616]
[1766967895055,9.91,126.4,126.32,3.4817605]
[1766967895261,9.91,126.4,126.3,10.27]
[1766967895262,13.3917605,126.4,126.3,10.27]
[1766967895964,0.05030098,126.36,126.34,0.05606186]
[1766967896160,9.91,126.44,126.34,0.05606186]
[1766967896359,9.91,126.44,126.33,7.1298]
[1766967897260,0.05749618,126.4,126.37,0.06047017]
[1766967899065,13.3917605,126.47,126.37,0.06047017]
[1766967899265,13.3917605,126.47,126.36,3.4817605]
[1766967900166,0.06067986,126.43,126.4,0.05544401]
[1766967901268,9.91,126.51,126.42,3.4817605]
[1766967901659,9.91,126.51,126.4,13.7517605]
[1766967902062,9.91,126.51,126.42,3.4817605]
[1766967902264,0.05289064,126.47,126.44,0.05330428]
[1766967903158,0.00289064,126.47,126.44,0.05330428]
[1766967904678,9.91,126.54,126.44,13.80506478]
[1766967904969,9.91,126.54,126.44,13.7517605]
[1766967905173,9.91,126.54,126.46,3.4817605]
[1766967905359,9.91,126.58,126.47,10.27]
[1766967905566,0.05605059,126.54,126.51,0.06019319]
[1766967905977,0.05605059,126.54,126.51,0.00019319]
[1766967906182,9.96605059,126.54,126.44,7.1235]
[1766967906473,9.91,126.54,126.44,7.1235]
[1766967906973,3.4817605,126.59,126.46,10.27]
[1766967906974,3.4817605,126.57,126.46,10.27]